bitfinex/quotes_ETHUSD_20251031
["timestamp","ask_amount","ask_price","bid_price","bid_amount"]
[1761931944292,0.467,3832.1,3832.0,2.74000334]
[1761931945236,0.4667,3832.5,3832.4,2.60933096]
[1761931945381,0.4667,3832.5,3832.0,0.1304]
[1761931945581,0.4667,3832.5,3832.1,2.60947231]
[1761931945820,0.03261663,3832.4,3832.2,3.88]
[1761931946118,0.1304,3832.3,3831.6,0.1304]
[1761931946298,0.467,3832.1,3831.6,2.74025876]
[1761931946620,0.467,3832.1,3831.6,0.1304]
[1761931946920,0.5971,3832.3,3832.0,2.60954699]
[1761931947223,0.1304,3832.3,3832.2,2.60946714]
[1761931947887,0.4667,3832.7,3832.2,2.60946714]
[1761931948087,0.1304,3832.6,3832.3,0.02609399]
[1761931948293,0.467,3832.2,3831.9,0.1304]
[1761931948534,0.467,3832.2,3831.5,0.1314]
[1761931948535,0.467,3832.0,3831.5,0.1314]
[1761931948754,0.467,3831.6,3831.5,0.001]
[1761931949163,0.9337,3831.6,3831.5,0.001]
[1761931949311,1.0641,3831.6,3831.5,0.001]
[1761931950029,0.5974,3831.6,3831.5,2.61094388]
[1761931950238,0.1304,3831.6,3831.5,2.61094388]
[1761931950450,1.0641,3831.6,3831.5,0.001]
[1761931951315,7.097795,3831.6,3831.5,0.001]
[1761931951514,6.19042317,3831.6,3831.5,0.001]
[1761931951737,4.08070817,3831.6,3831.5,0.001]
[1761931951911,1.0641,3831.6,3831.5,0.001]
[1761931952316,3.48604644,3831.6,3831.5,0.001]
[1761931952759,1.09672344,3831.6,3831.5,0.001]
[1761931953063,3.47104644,3831.6,3831.5,0.001]
[1761931955130,6.0809222,3831.6,3831.5,0.001]
[1761931955353,4.08745222,3831.6,3831.5,0.001]
[1761931955757,4.12007566,3831.6,3831.5,0.001]
[1761931956518,32.03190342,3831.6,3831.5,0.001]
[1761931956747,14.10626822,3831.6,3831.5,0.001]
[1761931956946,7.13068722,3831.6,3831.5,0.001]
[1761931957260,4.59875422,3831.6,3831.5,0.001]
[1761931957562,3.71470522,3831.6,3831.5,0.001]
[1761931958061,1.71312922,3831.6,3831.5,0.001]
[1761931958271,3.065671,3831.6,3831.5,0.001]
[1761931958772,1.0641,3831.6,3831.5,0.001]
[1761931959175,0.1304,3831.7,3831.5,0.001]
[1761931959540,0.1304,3831.7,3831.5,2.61093598]
[1761931959875,0.9337,3831.6,3831.5,0.001]
[1761931960080,1.08430926,3831.6,3831.5,0.001]
[1761931960430,0.61760926,3831.6,3831.5,0.001]
[1761931960974,9.06994526,3831.6,3831.5,0.001]
[1761931961181,7.23637626,3831.6,3831.5,0.001]
[1761931961585,9.84625202,3831.6,3831.5,0.001]
[1761931961781,9.84625202,3831.6,3831.4,0.001]
[1761931961782,31.44001988,3831.5,3831.4,0.001]
[1761931962075,32.1611212,3831.5,3831.4,0.001]
[1761931962277,20.87415708,3831.5,3831.4,0.001]
[1761931962446,21.28362855,3831.5,3831.4,0.001]
[1761931962647,32.34619355,3831.5,3831.4,0.001]
[1761931963183,29.47719355,3831.5,3831.4,0.001]
[1761931963543,28.71061255,3831.5,3831.4,0.001]
[1761931963751,31.75441655,3831.5,3831.4,0.001]
[1761931963951,34.51041655,3831.5,3831.4,0.001]
[1761931964266,34.41560479,3830.8,3830.1,0.01]
[1761931964461,4.01050972,3830.2,3830.1,0.01]
[1761931964677,13.89908137,3830.2,3830.1,0.01]
[1761931964893,16.94397572,3830.2,3830.1,0.01]
[1761931965854,33.83729472,3830.2,3830.1,0.01]
[1761931966095,36.02970268,3830.2,3830.1,0.01]
[1761931966313,32.61151154,3829.2,3828.2,0.001]
[1761931966448,0.405504,3829.1,3828.2,0.001]
[1761931966646,20.584669,3828.6,3828.2,0.001]
[1761931966847,13.03697946,3828.6,3828.2,0.001]
[1761931967066,13.49687946,3828.6,3828.2,0.001]
[1761931967266,16.10880026,3828.6,3828.2,0.001]
[1761931967555,13.49687946,3828.6,3828.2,0.001]
[1761931967754,18.78325946,3828.6,3828.2,0.001]
[1761931968464,18.27853546,3828.6,3828.2,0.001]
[1761931968803,6.25987526,3828.6,3828.2,0.001]
[1761931968953,30.17273726,3828.6,3828.2,0.001]
[1761931969491,24.22417846,3828.6,3828.2,0.001]
[1761931969784,20.97405546,3828.6,3828.2,0.001]
[1761931970002,18.00092346,3828.6,3828.2,0.001]
[1761931970367,20.61284426,3828.6,3828.2,0.001]
[1761931970876,28.98703246,3828.6,3828.2,0.001]
[1761931971081,25.91197926,3828.6,3828.2,0.001]
[1761931971817,6.25987526,3828.6,3828.2,0.001]
[1761931972032,22.63845746,3828.6,3828.2,0.001]
[1761931972191,23.1664578,3828.6,3828.2,0.001]
[1761931972513,23.5719618,3828.6,3828.2,0.001]
[1761931972811,5.92689541,3828.6,3828.2,0.001]
[1761931973018,32.19591241,3828.6,3828.2,0.001]
[1761931973321,24.09646295,3828.6,3828.2,0.001]
[1761931973549,13.43527715,3828.6,3828.2,0.001]
[1761931973813,2.90947061,3828.6,3828.2,0.001]
[1761931974000,17.47653162,3828.6,3828.2,0.001]
[1761931974197,20.05580341,3828.6,3828.2,0.001]
[1761931974600,12.15990561,3828.6,3828.2,0.001]
[1761931974779,11.16385561,3828.6,3828.2,0.001]
[1761931974981,4.60442361,3828.6,3828.2,0.001]
[1761931975283,4.63707262,3828.6,3828.2,0.001]
[1761931975479,0.40979061,3828.6,3828.2,0.001]
[1761931975734,3.308848,3829.5,3828.5,0.0832]
[1761931975883,2.24613,3829.8,3829.1,0.0822]
[1761931976082,0.1304,3829.0,3828.8,2.61178117]
[1761931976342,0.1304,3829.0,3828.9,0.26379004]
[1761931976551,0.1304,3829.0,3828.9,2.95770619]
[1761931976699,0.1304,3829.0,3828.9,0.34599004]
[1761931976895,0.1304,3829.0,3828.9,0.0822]
[1761931977511,0.612,3829.0,3828.5,0.001]
[1761931977728,0.03264645,3828.9,3828.5,0.001]
[1761931977911,0.1304,3829.0,3828.9,0.0822]
[1761931978235,11.863683,3829.4,3828.9,0.0822]
[1761931978414,0.03264304,3829.3,3828.9,0.0822]
[1761931978812,0.002,3829.1,3828.9,0.0822]
[1761931979039,0.002,3829.1,3828.6,0.0822]
[1761931979040,0.002,3829.1,3828.5,0.001]
[1761931979405,0.002,3829.1,3828.5,2.61298706]
[1761931979632,0.002,3829.1,3828.7,2.61179108]
[1761931980032,0.002,3829.1,3828.5,0.001]
[1761931980758,0.6804,3828.6,3828.5,0.001]
[1761931980962,23.5154358,3828.6,3828.5,0.001]
[1761931981113,26.12110134,3828.6,3828.5,0.001]
[1761931981312,22.68514134,3828.6,3828.5,0.001]
[1761931981614,24.08482134,3828.6,3828.5,0.001]
[1761931981952,37.76341234,3828.6,3828.5,0.001]
[1761931982946,22.16744834,3828.6,3828.5,0.001]
[1761931983152,5.690398,3828.6,3828.5,0.001]
[1761931983363,1.59848,3828.9,3828.5,0.001]
[1761931983510,4.059659,3828.8,3828.5,0.001]
[1761931983859,20.634336,3828.6,3828.5,0.001]
[1761931984019,7.733364,3828.6,3828.5,0.001]
[1761931984343,10.8051848,3828.6,3828.5,0.001]
[1761931984507,11.09448988,3828.6,3828.5,0.001]
[1761931984922,21.62328268,3828.6,3828.5,0.001]
[1761931985533,19.01136188,3828.6,3828.5,0.001]
[1761931985732,2.021132,3828.8,3828.5,0.001]
[1761931985948,3.420812,3828.8,3828.5,0.001]
[1761931986111,8.634902,3829.0,3828.5,0.001]
[1761931986315,5.540265,3828.7,3828.5,0.001]
[1761931986659,0.03264901,3828.6,3828.5,0.001]
[1761931986837,2.62691401,3828.6,3828.5,0.001]
[1761931987447,21.86647281,3828.6,3828.5,0.001]
[1761931987765,23.904362,3828.6,3828.5,0.001]
[1761931987965,17.1144722,3828.6,3828.5,0.001]
[1761931988122,19.726393,3828.6,3828.5,0.001]
[1761931988328,28.210917,3828.6,3828.5,0.001]
[1761931988524,29.610597,3828.6,3828.5,0.001]
[1761931988739,2.61205725,3828.4,3828.3,0.001]
[1761931988940,34.52598796,3828.4,3828.3,0.001]
[1761931989267,17.61115025,3828.4,3828.3,0.001]
[1761931989564,4.823394,3828.4,3828.3,0.001]
[1761931989731,8.33780361,3828.4,3828.3,0.001]
[1761931989930,8.99033687,3828.4,3828.3,0.001]
[1761931990237,6.37827962,3828.4,3828.3,0.001]
[1761931990439,1.39968,3828.4,3828.3,0.001]
[1761931990933,15.168033,3828.4,3828.3,0.001]
[1761931991135,12.587437,3828.4,3828.3,0.001]
[1761931991323,13.447148,3828.4,3828.3,0.001]
[1761931991526,5.922986,3828.4,3828.3,0.001]
[1761931991741,1.39968,3828.4,3828.3,0.001]
[1761931991946,3.756969,3828.4,3828.3,0.001]
[1761931992144,7.31052625,3828.4,3828.3,0.001]
[1761931992326,25.19377048,3828.4,3828.3,0.001]
[1761931992662,14.27413948,3828.4,3828.3,0.001]
[1761931992821,5.13429123,3828.4,3828.3,0.001]
[1761931993022,4.37543323,3828.4,3828.3,0.001]
[1761931993265,2.2754137,3828.4,3828.3,0.001]
[1761931993430,1.80947547,3828.4,3828.3,0.001]
[1761931993626,0.40979547,3828.4,3828.3,0.001]
[1761931993955,11.93216247,3828.4,3828.3,0.001]
[1761931994154,10.09192447,3828.4,3828.3,0.001]
[1761931994350,22.21936372,3828.4,3828.3,0.001]
[1761931994662,15.67069726,3828.4,3828.3,0.001]
[1761931994873,15.03443826,3828.4,3828.3,0.001]
[1761931995236,0.40979547,3828.4,3828.3,0.001]
[1761931995470,0.40979547,3828.4,3828.3,0.0842]
[1761931997169,20.17486372,3828.4,3828.3,0.001]
[1761931997472,18.42626072,3828.4,3828.3,0.001]
[1761931997669,19.81753383,3828.4,3828.3,0.001]
[1761931998168,28.36205183,3828.4,3828.3,0.001]
[1761931998375,24.41742883,3828.4,3828.3,0.001]
[1761931999035,34.40329283,3828.4,3828.3,0.001]
[1761931999227,20.86776583,3828.4,3828.3,0.001]
[1761931999625,3.77966047,3828.4,3828.3,0.001]
[1761931999823,0.40979547,3828.4,3828.3,0.0842]
[1761932000257,0.54019547,3828.4,3828.3,0.0842]
[1761932000430,0.1304,3828.4,3828.3,0.001]
[1761932000770,4.461181,3828.4,3828.3,0.001]
[1761932000940,0.1304,3828.4,3828.3,0.001]
[1761932001352,0.1304,3828.4,3828.3,0.0842]
[1761932001549,3.533903,3829.0,3828.3,0.0842]
[1761932001939,1.61662645,3828.9,3828.3,0.001]
[1761932002188,11.038418,3828.5,3828.3,0.001]
[1761932002399,3.23703871,3828.4,3828.3,0.001]
[1761932002607,4.04784258,3828.4,3828.3,0.001]
[1761932002884,7.11929983,3828.4,3828.3,0.001]
[1761932003093,5.28194112,3828.4,3828.3,0.001]
[1761932003243,30.56958612,3828.4,3828.3,0.001]
[1761932003442,30.97509012,3828.4,3828.3,0.001]
[1761932003654,25.19640792,3828.4,3828.3,0.001]
[1761932004195,30.65435092,3828.4,3828.3,0.001]
[1761932004368,29.80713192,3828.4,3828.3,0.001]
[1761932004738,24.59668192,3828.4,3828.3,0.001]
[1761932004939,24.19117792,3828.4,3828.3,0.001]
[1761932005156,6.27824367,3828.4,3828.3,0.001]
[1761932005355,3.6053588,3828.4,3828.3,0.001]
[1761932005603,0.4098308,3828.4,3828.3,0.0842]
[1761932006423,0.4098308,3828.4,3828.3,2.69632548]
[1761932006554,0.4098308,3828.4,3828.3,2.80564673]
[1761932006759,0.4098308,3828.4,3828.3,3.34863503]
[1761932006961,0.002,3829.1,3828.4,2.61201334]
[1761932007388,14.536454,3829.0,3828.3,0.6271883]
[1761932007572,14.536454,3829.0,3828.4,0.02612057]
[1761932007573,0.03264645,3828.9,3828.4,0.02612057]
[1761932007791,8.0,3829.0,3828.9,0.0832]
[1761932008903,8.0,3829.0,3828.9,0.1664]
[1761932009058,8.0,3829.0,3828.9,0.0832]
[1761932009263,8.0,3829.0,3828.3,2.61310904]
[1761932009457,8.0,3829.0,3828.9,0.0832]
[1761932010679,0.002,3829.1,3828.9,0.0832]
[1761932010882,0.002,3829.1,3829.0,0.0832]
[1761932011502,2.8722,3829.0,3828.3,0.001]
[1761932011807,0.1304,3829.0,3828.3,0.11032125]
[1761932012094,0.1304,3829.0,3828.5,2.61198504]
[1761932012299,2.53467545,3828.9,3828.3,0.001]
[1761932012495,0.1304,3828.6,3828.3,0.001]
[1761932012904,6.06391486,3828.5,3828.3,0.001]
[1761932013102,2.396292,3828.7,3828.3,0.001]
[1761932013303,0.1843,3828.9,3828.3,0.001]
[1761932013304,0.002,3829.0,3828.3,0.001]
[1761932013516,0.002,3829.0,3828.6,0.0832]
[1761932013658,2.488762,3828.9,3828.6,0.0832]
[1761932013864,0.0326473,3828.8,3828.6,0.0832]
[1761932014067,0.002,3829.0,3828.6,0.0832]
[1761932014599,0.16304645,3828.9,3828.3,0.001]
[1761932014804,2.929394,3828.4,3828.1,0.011]
[1761932015010,11.29286225,3827.2,3826.0,0.0832]
[1761932015309,9.36189748,3827.2,3826.0,0.0832]
[1761932015479,6.74902123,3827.2,3826.0,0.0832]
[1761932015681,9.82129748,3827.2,3826.0,0.0832]
[1761932015990,36.08834248,3827.2,3825.0,0.0832]
[1761932016160,29.77369948,3827.2,3825.6,0.0832]
[1761932016365,25.65701748,3827.2,3825.6,0.0832]
[1761932016796,22.00747048,3827.2,3825.6,0.0832]
[1761932016996,22.03027448,3827.2,3825.6,2.78031628]
[1761932017228,21.78930748,3827.2,3825.7,2.64000998]
[1761932017428,17.92363048,3827.2,3825.8,2.63996872]
[1761932017598,0.1843,3827.6,3826.1,0.03613627]
[1761932017925,15.994587,3827.4,3826.4,0.0832]
[1761932018126,15.32915125,3827.2,3826.1,0.01]
[1761932018289,16.72883125,3827.2,3826.1,0.01]
[1761932018484,14.50654825,3827.2,3826.1,0.01]
[1761932018700,16.30046437,3827.2,3826.1,0.01]
[1761932018884,36.75297237,3827.2,3826.1,0.01]
[1761932019129,37.15847637,3827.2,3826.1,0.01]
[1761932019798,45.15847637,3827.2,3826.1,0.01]
[1761932019989,43.42097637,3827.2,3826.1,0.01]
[1761932020192,39.07585037,3827.2,3826.1,0.01]
[1761932020910,15.15847637,3827.2,3826.1,0.01]
[1761932021111,45.15847637,3827.2,3826.1,0.01]
[1761932021411,38.69673437,3827.2,3826.1,0.01]
[1761932021920,38.29123037,3827.2,3826.1,0.01]
[1761932022127,43.80647237,3827.2,3826.1,0.01]
[1761932022327,25.94618737,3827.2,3826.1,0.01]
[1761932022490,24.61623137,3827.2,3826.1,0.01]
[1761932023030,30.49749737,3827.2,3826.1,0.01]
[1761932023192,38.62948137,3827.2,3826.1,0.01]
[1761932023390,38.30948137,3827.2,3826.1,0.01]
[1761932023628,38.04769137,3827.2,3826.1,0.01]
[1761932023786,36.98965437,3827.2,3826.1,0.01]
[1761932024127,14.29357237,3827.2,3826.1,0.03613627]
[1761932024331,21.89304537,3827.2,3826.1,0.03613627]
[1761932024514,10.766916,3827.2,3826.2,0.0832]
[1761932024685,10.766916,3827.2,3826.2,0.02613559]
[1761932024885,13.86689225,3827.2,3826.1,0.01]
[1761932025090,15.72597225,3827.2,3826.1,0.01]
[1761932025286,32.18308125,3827.2,3826.1,0.01]
[1761932025487,32.18308125,3827.2,3826.2,3.88]
[1761932026111,32.58858525,3827.2,3826.1,0.01]
[1761932026328,45.97607179,3827.2,3826.1,0.01]
[1761932027331,40.23314279,3827.2,3826.1,0.01]
[1761932027532,37.96012379,3827.2,3826.1,0.01]
[1761932027724,34.73765479,3827.2,3826.1,0.01]
[1761932028347,35.69718879,3827.2,3826.1,0.01]
[1761932028545,33.47122379,3827.2,3826.1,0.01]
[1761932028748,33.06571979,3827.2,3826.1,0.01]
[1761932029110,32.19559279,3827.2,3826.1,0.01]
[1761932029314,33.33140979,3827.2,3826.1,0.01]
[1761932030247,43.79981779,3827.2,3826.1,0.01]
[1761932030949,44.20986313,3827.2,3827.1,0.011]
[1761932031247,43.21225313,3827.2,3827.1,0.011]
[1761932031446,37.16637813,3827.2,3827.1,0.011]
[1761932031664,34.49714813,3827.2,3827.1,0.011]
[1761932032165,34.90265213,3827.2,3827.1,0.011]
[1761932032467,34.90265213,3827.2,3827.1,1e-08]
[1761932032468,46.38611713,3827.2,3827.1,1e-08]
[1761932032640,33.01865336,3826.8,3826.7,0.001]
[1761932032841,37.6615449,3826.8,3826.7,0.001]
[1761932033031,38.1587449,3826.8,3826.7,0.001]
[1761932033231,38.56875374,3826.8,3826.7,0.001]
[1761932033965,41.32475374,3826.8,3826.7,0.001]
[1761932034167,38.56875374,3826.8,3826.7,0.001]
[1761932034865,39.33715246,3826.8,3826.7,0.001]
[1761932035232,2.61369576,3826.0,3825.9,0.43246307]
[1761932035431,2.61369576,3826.0,3825.1,0.01]
[1761932035432,31.45800939,3825.2,3825.1,0.01]
[1761932035652,32.50688939,3825.2,3825.1,0.01]
[1761932035865,29.40056739,3825.2,3825.1,0.01]
[1761932036066,32.42218157,3825.2,3825.1,0.01]
[1761932036235,37.40973657,3825.2,3825.1,0.01]
[1761932036437,34.04821857,3825.2,3825.1,0.01]
[1761932036750,31.84107157,3825.2,3825.1,0.01]
[1761932036939,31.58451757,3825.2,3825.1,0.01]
[1761932037144,21.23416357,3825.2,3825.1,0.01]
[1761932037334,38.03927157,3825.2,3825.1,0.01]
[1761932037662,35.34995657,3825.2,3825.1,0.01]
[1761932037862,20.52067164,3825.2,3825.1,0.01]
[1761932038242,8.41010264,3825.2,3825.1,1.072]
[1761932038747,8.41010264,3825.2,3825.1,3.68631073]
[1761932038937,8.0,3825.2,3825.1,3.68631073]
[1761932039748,8.0,3825.2,3825.1,1.072]
[1761932040279,23.296278,3825.2,3825.1,0.6217]
[1761932040486,25.6259058,3825.2,3825.1,0.01]
[1761932040690,30.11272819,3825.2,3825.1,0.01]
[1761932040847,30.60992819,3825.2,3825.1,0.01]
[1761932041282,35.27662519,3825.2,3825.1,0.01]
[1761932042143,23.29171719,3825.2,3825.1,0.01]
[1761932042480,17.47304573,3825.2,3825.1,0.01]
[1761932042646,8.41012073,3825.2,3825.1,0.6217]
[1761932043369,18.19924473,3825.2,3825.1,0.1542]
[1761932043573,7.4844,3825.2,3825.1,3.68631073]
[1761932043753,2.3198,3825.2,3825.1,4.44678189]
[1761932044089,5.3198,3825.2,3825.1,4.44678189]
[1761932044267,0.1304,3825.9,3825.7,2.61387563]
[1761932044471,0.1304,3825.9,3825.8,2.87521996]
[1761932044675,0.002,3827.9,3826.7,2.6131952]
[1761932044848,0.002,3827.9,3826.8,0.02613149]
[1761932045048,0.03265753,3827.6,3827.0,2.6130001]
[1761932045244,0.002,3827.9,3827.0,0.26130001]
[1761932045450,0.002,3827.9,3826.3,0.0261349]
[1761932045451,0.002,3827.9,3827.4,2.61273971]
[1761932045716,0.002,3827.9,3827.4,4.41792371]
[1761932045848,0.002,3827.9,3827.4,4.4440511]
[1761932046048,0.002,3827.9,3827.4,4.01241971]
[1761932046594,0.002,3827.9,3827.4,4.0385471]
[1761932046798,0.002,3827.9,3827.4,4.70368532]
[1761932046979,0.002,3827.9,3827.4,5.08306193]
[1761932047371,0.002,3827.9,3827.4,3.27787793]
[1761932047723,0.002,3827.9,3827.2,2.6128642]
[1761932047871,0.002,3827.9,3826.3,0.405504]
[1761932048071,0.002,3827.9,3826.5,0.405504]
[1761932048304,0.002,3827.9,3826.6,0.30189265]
[1761932048501,0.1971,3827.9,3826.0,2.6136436]
[1761932048722,0.03265753,3827.6,3827.1,0.001]
[1761932052018,2.149389,3827.2,3827.1,0.001]
[1761932052187,2.18204995,3827.2,3827.1,0.001]
[1761932052371,2.40045495,3827.2,3827.1,0.001]
[1761932052707,2.367794,3827.2,3827.1,0.001]
[1761932052910,2.149389,3827.2,3827.1,0.001]
[1761932053117,0.002,3827.5,3827.1,0.001]
[1761932053280,2.488753,3827.4,3827.1,0.001]
[1761932053485,13.193969,3827.2,3827.1,0.001]
[1761932053682,15.313269,3827.4,3827.1,0.001]
[1761932053893,2.019293,3827.2,3827.1,0.001]
[1761932054099,2.519755,3827.2,3827.1,0.001]
[1761932054295,3.489855,3827.2,3827.1,0.001]
[1761932054501,6.10273125,3827.2,3827.1,0.001]
[1761932054715,8.43149794,3827.2,3827.1,0.001]
[1761932055071,7.11410069,3827.2,3827.1,0.001]
[1761932055278,6.02444669,3827.2,3827.1,0.001]
[1761932055701,8.63732294,3827.2,3827.1,0.001]
[1761932055902,5.26949769,3827.2,3827.1,0.001]
[1761932056102,3.90617,3827.2,3827.1,0.001]
[1761932056316,4.39527,3827.2,3827.1,0.001]
[1761932056609,3.43327,3827.2,3827.1,0.001]
[1761932056984,12.212046,3827.2,3827.1,0.001]
[1761932057191,7.493389,3827.2,3827.1,0.001]
[1761932057401,8.50419543,3827.2,3827.1,0.001]
[1761932057711,2.6128321,3827.3,3827.1,0.001]
[1761932057712,1.39968,3827.3,3827.1,0.001]
[1761932058018,20.8698212,3827.2,3827.1,0.001]
[1761932058323,6.549665,3827.2,3827.1,0.001]
[1761932058905,9.491194,3827.4,3827.1,0.001]
[1761932059178,0.03266009,3827.3,3827.1,0.001]
[1761932059385,2.15558,3827.4,3827.1,0.001]
[1761932059885,0.002,3827.5,3827.1,0.001]
[1761932060118,2.497503,3827.4,3827.1,0.001]
[1761932060417,0.002,3827.5,3827.1,0.001]
[1761932060899,5.255916,3827.4,3827.1,0.001]
[1761932061106,2.258185,3827.2,3827.1,0.001]
[1761932061287,0.2260185,3827.2,3827.1,0.001]
[1761932061488,2.168698,3827.2,3827.1,0.001]
[1761932062022,2.168698,3827.2,3826.7,0.001]
[1761932062023,2.61314936,3826.8,3826.7,0.001]
[1761932062195,28.73963872,3826.8,3826.7,0.001]
[1761932062395,24.35144353,3826.4,3826.3,0.001]
[1761932062719,2.61395192,3825.7,3825.1,0.01]
[1761932062899,0.03267461,3825.6,3825.1,0.01]
[1761932063100,1.88848,3826.3,3825.1,0.01]
[1761932063101,1.39968,3825.8,3825.1,0.01]
[1761932063304,0.03267375,3825.7,3825.1,0.01]
[1761932063506,0.41000139,3826.8,3825.9,0.0032]
[1761932063679,6.530822,3826.3,3826.0,0.26170197]
[1761932063875,0.1304,3826.0,3825.6,2.61390624]
[1761932064114,0.1304,3826.0,3825.5,0.02614037]
[1761932064282,0.1304,3826.0,3825.9,0.0032]
[1761932064681,0.1304,3826.0,3825.5,0.0032]
[1761932064682,0.1304,3826.0,3825.4,2.61403886]
[1761932064899,0.03267205,3825.9,3825.5,0.41441189]
[1761932065115,0.1304,3825.6,3825.1,0.01]
[1761932065344,0.03267546,3825.5,3825.1,0.01]
[1761932065514,2.36255,3825.4,3825.1,0.01]
[1761932065677,0.03267717,3825.3,3825.1,0.011]
[1761932065881,8.726048,3825.8,3825.1,0.0142]
[1761932066114,0.03267375,3825.7,3825.2,0.0032]
[1761932066503,9.23962,3825.6,3825.2,0.0032]
[1761932066711,0.03267546,3825.5,3825.2,0.0032]
[1761932066909,8.777527,3826.0,3825.2,0.0032]
[1761932067086,6.31411,3825.8,3825.2,0.0032]
[1761932067287,4.212373,3825.6,3825.2,0.0032]
[1761932067486,0.03267546,3825.5,3825.2,0.0032]
[1761932067820,0.1304,3825.3,3825.2,2.61744239]
[1761932068019,0.1304,3825.3,3825.2,2.61424239]
[1761932068225,0.41014064,3826.4,3825.5,1.39968]
[1761932068387,0.41014064,3826.4,3825.6,0.02613969]
[1761932068587,0.41014064,3826.4,3825.6,0.02933969]
[1761932068789,0.41014064,3826.4,3826.3,2.61669083]
[1761932068989,0.40694064,3826.4,3826.3,3.02219483]
[1761932069201,0.002,3827.5,3826.3,0.97228124]
[1761932069395,0.002,3827.5,3827.1,2.61292474]
[1761932069622,0.002,3827.5,3827.4,4.01241971]
[1761932069836,0.002,3827.5,3827.4,4.0385471]
[1761932070033,0.002,3827.5,3827.4,5.10918884]
[1761932070434,1e-08,3827.9,3827.8,3.01797069]
[1761932070602,1e-08,3827.9,3827.8,4.44377535]
[1761932071148,1e-08,3828.7,3828.6,3.0174248]
[1761932071329,1e-08,3828.7,3828.6,4.4171048]
[1761932071529,0.002,3829.1,3828.6,4.4171048]
[1761932071530,1e-08,3829.1,3829.0,2.61164794]
[1761932071727,1e-08,3829.1,3829.0,4.7041132]
[1761932071937,1e-08,3829.1,3829.0,4.2986092]
[1761932072119,1e-08,3829.8,3829.7,2.61117058]
[1761932072306,1e-08,3829.8,3829.7,4.67747164]
[1761932072614,1e-08,3829.8,3829.7,4.70358334]
[1761932072997,1e-08,3829.8,3829.7,4.67747164]
[1761932074401,1e-08,3829.8,3829.7,4.70358334]
[1761932075202,1e-08,3829.8,3829.7,4.67747164]
[1761932076009,1e-08,3829.8,3829.7,4.70358334]
[1761932076731,1e-08,3829.8,3829.7,4.67747164]
[1761932076937,1e-08,3829.8,3829.7,4.70358334]
[1761932077459,1e-08,3829.8,3829.7,4.67747164]
[1761932078236,1e-08,3829.8,3829.7,4.80787164]
[1761932085284,0.002,3830.2,3829.9,3.87799999]
[1761932085443,0.487,3830.0,3827.5,3.87799999]
[1761932085779,0.487,3830.0,3827.1,2.62290579]
[1761932085780,0.193,3829.8,3829.6,2.61117647]
[1761932086074,0.193,3829.8,3828.3,1.39968]
[1761932086282,0.193,3829.8,3829.7,2.61117058]
[1761932086490,0.002,3830.2,3828.7,0.02611852]
[1761932086773,0.002,3830.2,3830.1,2.61089788]
[1761932087136,0.002,3830.2,3830.1,4.03668685]
[1761932089576,0.002,3830.2,3830.0,2.61090549]
[1761932089777,0.4953,3830.1,3828.8,2.61178437]
[1761932089985,0.4953,3830.1,3829.5,1.39968]
[1761932090281,0.4953,3830.1,3830.0,2.61096605]
[1761932090449,0.488,3830.2,3830.0,6.48896604]
[1761932091478,0.488,3830.2,3830.1,2.61089788]
[1761932091886,0.488,3830.2,3830.0,3.87799999]
[1761932092259,0.002,3830.2,3830.1,2.61089788]
[1761932092449,0.002,3830.2,3830.0,3.87799999]
[1761932092652,0.9813,3830.1,3830.0,3.87799999]
[1761932093898,0.002,3830.2,3830.0,3.87799999]
[1761932094351,0.488,3830.2,3830.0,3.87799999]
[1761932095186,0.002,3830.2,3830.1,2.61089788]
[1761932095599,0.1304,3830.1,3830.0,6.4889479]
[1761932095754,0.1304,3830.1,3830.0,2.61094791]
[1761932096154,0.1304,3830.1,3829.9,3.87799999]
[1761932096354,0.1304,3830.1,3829.9,6.48901515]
[1761932096664,0.4953,3830.0,3829.9,3.87799999]
[1761932097078,0.4953,3830.0,3829.9,6.48903422]
[1761932097392,0.6164,3830.1,3830.0,2.61096605]
[1761932097558,0.6164,3830.1,3830.0,2.63707571]
[1761932097559,0.1304,3830.1,3830.0,2.63707571]
[1761932098089,1.1117,3830.1,3829.9,3.87799999]
[1761932098393,0.4953,3830.0,3829.9,6.48903422]
[1761932098897,0.4953,3830.0,3829.9,3.87799999]
[1761932099095,0.9813,3830.0,3829.9,3.87799999]
[1761932100271,0.9813,3830.0,3829.9,3.87899999]
[1761932101577,0.9813,3830.0,3829.9,0.001]
[1761932103477,0.002,3830.2,3830.1,2.61089788]
[1761932103714,0.002,3830.2,3830.1,6.51500684]
[1761932103886,0.002,3830.2,3830.1,2.74129788]
[1761932104083,0.002,3830.2,3830.1,2.76740685]
[1761932104399,0.002,3830.2,3830.1,2.74129788]
[1761932104604,0.002,3830.2,3829.9,0.26481929]
[1761932104802,0.002,3830.2,3830.1,2.61089788]
[1761932105880,0.002,3830.2,3830.0,0.02610966]
[1761932106083,0.002,3830.2,3829.9,0.001]
[1761932106284,0.002,3830.2,3830.1,2.61089788]
[1761932106823,0.002,3830.2,3830.1,2.63700685]
[1761932107016,0.002,3830.2,3830.1,3.16190537]
[1761932107402,0.002,3830.2,3830.1,3.56740937]
[1761932107610,0.002,3830.2,3830.1,4.96708937]
[1761932107796,0.002,3830.6,3830.5,3.01612924]
[1761932107998,0.60243815,3832.0,3830.9,3.01585665]